bitfinex/quotes_SOLUSD_20220116
["timestamp","ask_amount","ask_price","bid_price","bid_amount"]
[1642322021916,0.26,149.84,149.77,117.5839939]
[1642322022307,27.21608021,149.85,149.77,50.8139939]
[1642322023405,27.21608021,149.85,149.77,117.5839939]
[1642322023806,24.4385,149.86,149.77,117.5839939]
[1642322024005,1.89760167,149.87,149.78,76.61]
[1642322024207,1.89760167,149.87,149.8,66.77]
[1642322024404,1.89760167,149.87,149.81,0.26]
[1642322024804,1.89760167,149.87,149.82,9.84]
[1642322025005,1.89760167,149.87,149.82,84.232]
[1642322025208,1.89760167,149.9,149.83,0.26]
[1642322026331,1.89760167,149.91,149.83,0.26]
[1642322027333,56.45292669,149.92,149.83,0.26]
[1642322027933,56.45292669,149.92,149.84,35.85779794]
[1642322028146,0.26,149.91,149.84,35.85779794]
[1642322028334,0.26,149.91,149.85,0.26]
[1642322029136,0.26,149.91,149.85,67.03]
[1642322029435,0.26,149.91,149.85,73.28]
[1642322030237,0.26,149.91,149.85,97.1088]
[1642322030437,0.26,149.92,149.85,97.1088]
[1642322030736,0.26,149.92,149.85,30.3388]
[1642322033142,0.26,149.92,149.85,30.0888]
[1642322034442,0.26,149.92,149.85,30.3388]
[1642322039751,0.26,149.92,149.85,30.0788]
[1642322040152,0.26,149.92,149.85,24.0788]
[1642322040757,34.25837746,149.93,149.85,24.0788]
[1642322041453,34.25837746,149.93,149.86,0.26]
[1642322042055,0.26,149.92,149.86,0.26]
[1642322042454,34.25837746,149.93,149.86,0.26]
[1642322044355,40.25837746,149.93,149.86,0.26]
[1642322044855,0.26,149.92,149.86,0.26]
[1642322046458,0.26,149.92,149.85,30.0788]
[1642322046658,0.26,149.92,149.85,33.9188]
[1642322047061,0.26,149.92,149.85,39.9188]
[1642322047862,40.25837746,149.93,149.86,0.26]
[1642322048663,34.25837746,149.93,149.86,0.26]
[1642322049163,40.25837746,149.93,149.86,0.26]
[1642322049363,34.25837746,149.93,149.86,0.26]
[1642322049566,1.89760167,149.94,149.86,0.26]
[1642322049862,1.89760167,149.94,149.86,7.344]
[1642322050266,1.89760167,149.94,149.86,13.594]
[1642322050662,31.70023226,149.93,149.87,44.18394951]
[1642322050863,31.70023226,149.93,149.88,0.26]
[1642322051463,31.44023226,149.93,149.88,0.26]
[1642322051863,37.69023226,149.93,149.88,0.26]
[1642322052464,31.44023226,149.93,149.88,0.26]
[1642322052666,37.44023226,149.93,149.88,0.26]
[1642322053066,6.0,149.93,149.88,0.26]
[1642322053266,1.89760167,149.94,149.88,0.26]
[1642322053669,1.89760167,149.94,149.88,76.87]
[1642322053865,1.89760167,149.94,149.88,83.12]
[1642322054066,1.89760167,149.94,149.88,107.22617491]
[1642322054467,1.89760167,149.96,149.88,107.22617491]
[1642322055467,1.89760167,149.98,149.88,107.22617491]
[1642322055767,1.89760167,149.98,149.89,0.07]
[1642322055967,1.89760167,149.98,149.9,9.84]
[1642322056169,1.89760167,149.98,149.91,90.7144]
[1642322056367,1.89760167,149.98,149.92,9.84]
[1642322056569,1.89760167,149.98,149.93,66.77]
[1642322056769,1.89760167,150.0,149.93,72.68]
[1642322056968,1.89760167,150.0,149.94,41.40138998]
[1642322057168,1.89760167,150.0,149.95,66.77]
[1642322057369,1.89760167,150.0,149.95,77.12]
[1642322057567,1.89760167,150.0,149.95,83.12]
[1642322058773,1.89760167,150.01,149.95,83.12]
[1642322058970,1.89760167,150.01,149.95,16.09]
[1642322059170,1.89760167,150.01,149.95,15.84]
[1642322059399,0.26,150.0,149.95,15.84]
[1642322059799,1.89760167,150.01,149.95,15.84]
[1642322060201,1.89760167,150.01,149.95,16.09]
[1642322060400,1.89760167,150.01,149.96,0.26]
[1642322061601,1.89760167,150.01,149.96,67.03]
[1642322062000,1.89760167,150.01,149.96,67.28]
[1642322062202,1.89760167,150.01,149.97,44.18394951]
[1642322062400,1.89760167,150.01,149.98,0.26]
[1642322063000,1.89760167,150.02,149.98,0.26]
[1642322066406,1.89760167,150.03,149.98,0.26]
[1642322067704,1.89760167,150.03,149.97,44.43394951]
[1642322067905,0.26,150.02,149.97,0.25]
[1642322068407,0.26,150.02,149.95,40.8903]
[1642322068808,32.47412121,150.02,149.95,77.2674174]
[1642322069210,34.37172288,150.02,149.96,0.26]
[1642322069408,34.37172288,150.02,149.96,10.1]
[1642322069810,34.37172288,150.02,149.96,9.84]
[1642322070008,40.37172288,150.02,149.96,15.84]
[1642322070311,40.37172288,150.02,149.96,9.84]
[1642322070509,40.37172288,150.02,149.91,34.2221]
[1642322070709,1.89760167,150.01,149.91,40.2221]
[1642322070910,0.26,150.0,149.92,38.30656611]
[1642322071609,3.4005393,149.99,149.92,38.30656611]
[1642322071810,0.26,149.98,149.92,38.30656611]
[1642322072410,0.26,149.98,149.92,38.55656611]
[1642322072610,0.26,149.98,149.92,44.55656611]
[1642322074113,112.0,149.96,149.8,177.72456287]
[1642322074315,1.70077588,149.91,149.8,3.78487037]
[1642322074514,9.84,149.9,149.8,3.78487037]
[1642322074713,9.84,149.89,149.79,3.78487037]
[1642322074914,0.26,149.88,149.79,3.78487037]
[1642322075213,0.26,149.88,149.8,41.16809128]
[1642322075413,0.26,149.88,149.8,107.93809128]
[1642322075614,6.0,149.89,149.8,107.93809128]
[1642322075816,0.26,149.88,149.8,107.93809128]
[1642322076217,30.0708,149.9,149.8,107.93809128]
[1642322076418,24.0708,149.9,149.8,117.77809128]
[1642322076720,3.48399589,149.92,149.8,118.02809128]
[1642322076921,9.48399589,149.92,149.81,0.26]
[1642322077118,3.48399589,149.92,149.81,0.26]
[1642322077320,9.48399589,149.92,149.82,9.84]
[1642322077619,3.48399589,149.92,149.82,9.84]
[1642322077819,3.48399589,149.92,149.83,67.03]
[1642322078221,3.48399589,149.92,149.84,36.57572731]
[1642322078420,0.26,149.91,149.85,0.26]
[1642322078620,0.26,149.91,149.84,36.82572731]
[1642322079021,0.26,149.91,149.84,36.57572731]
[1642322079221,0.26,149.91,149.84,36.82572731]
[1642322079821,0.26,149.91,149.84,36.57572731]
[1642322080825,0.26,149.92,149.84,36.57572731]
[1642322081225,0.26,149.92,149.84,36.82572731]
[1642322081427,0.26,149.92,149.85,0.26]
[1642322083727,28.7803,149.93,149.85,0.26]
[1642322083928,22.7803,149.93,149.85,0.26]
[1642322085127,23.8394,149.95,149.85,0.26]
[1642322085327,13.51546095,150.01,149.87,66.77]
[1642322085528,37.57026095,150.01,149.87,82.56]
[1642322085754,43.57026095,150.01,149.88,0.26]
[1642322085953,22.49935099,150.0,149.88,56.54706416]
[1642322086155,22.49935099,150.0,149.89,66.77]
[1642322086357,28.49935099,150.0,149.9,0.26]
[1642322086559,28.74935099,150.0,149.9,0.26]
[1642322086956,0.26,149.99,149.9,0.26]
[1642322087158,0.26,149.99,149.89,0.51]
[1642322087555,0.26,149.99,149.89,0.26]
[1642322088557,28.74935099,150.0,149.89,0.26]
[1642322091364,0.26,149.99,149.89,0.26]
[1642322096770,0.26,149.99,149.89,10.1]
[1642322096969,0.26,149.99,149.89,16.1]
[1642322097170,0.26,149.99,149.89,82.87]
[1642322097371,0.26,149.99,149.89,16.1]
[1642322098170,0.26,149.99,149.89,16.35]
[1642322099071,0.26,149.99,149.89,10.1]
[1642322099270,0.26,149.99,149.88,46.44706416]
[1642322099870,24.5706,149.99,149.88,46.44706416]
[1642322100071,36.11137588,149.99,149.88,46.44706416]
[1642322100275,42.11137588,149.99,149.88,46.44706416]
[1642322100472,42.11137588,149.99,149.88,52.44706416]
[1642322101271,42.11137588,149.99,149.88,52.69706416]
[1642322101471,52.11577588,149.99,149.88,52.69706416]
[1642322103078,51.85577588,149.99,149.88,52.69706416]
[1642322103676,51.85577588,149.99,149.89,0.26]
[1642322103880,52.10577588,149.99,149.89,0.26]
[1642322104579,0.26,149.98,149.89,0.26]
[1642322113195,0.26,149.98,149.89,24.0854]
[1642322113388,0.26,149.98,149.89,30.3354]
[1642322113589,0.26,149.98,149.89,30.0854]
[1642322113789,0.26,149.98,149.89,24.0854]
[1642322114389,0.26,149.98,149.89,23.8254]
[1642322115892,0.26,149.98,149.89,24.0754]
[1642322116292,0.26,149.98,149.89,23.8254]
[1642322119626,0.26,149.98,149.88,46.44706416]
[1642322119826,0.26,149.98,149.88,52.69706416]
[1642322121530,0.26,149.98,149.88,6.25]
[1642322121732,0.26,149.98,149.88,0.25]
[1642322122035,0.26,149.98,149.87,0.26]
[1642322122533,0.26,149.98,149.87,105.76358797]
[1642322123031,0.26,149.98,149.87,112.01358797]
[1642322123235,0.26,149.98,149.88,24.1875]
[1642322123435,0.26,149.98,149.89,0.26]
[1642322128135,44.07606095,149.99,149.89,0.26]
[1642322128440,44.07606095,149.99,149.88,30.4375]
[1642322129341,9.29794402,149.97,149.88,30.4375]
[1642322129737,0.26,149.96,149.88,30.4375]
[1642322131838,0.26,149.96,149.89,0.26]
[1642322132636,0.26,149.96,149.88,30.4375]
[1642322132838,0.26,149.96,149.89,0.26]
[1642322133036,15.29794402,149.97,149.89,0.26]
[1642322134539,0.26,149.96,149.89,0.26]
[1642322136037,0.26,149.96,149.88,24.1875]
[1642322136237,0.26,149.96,149.88,24.4375]
[1642322136438,0.26,149.96,149.88,24.1875]
[1642322137039,0.26,149.96,149.85,22.8728]
[1642322137239,20.1064,149.96,149.85,22.8728]
[1642322137436,20.1064,149.96,149.84,66.77]
[1642322137437,26.1064,149.96,149.84,66.77]
[1642322137638,22.49935099,149.94,149.85,24.9313]
[1642322137838,0.26,149.93,149.85,24.9313]
[1642322138238,0.26,149.93,149.82,24.9053]
[1642322138438,24.6939,149.93,149.82,30.9053]
[1642322138637,40.5339,149.93,149.82,24.9053]
[1642322138938,1.70077588,149.92,149.81,24.75]
[1642322139141,9.29794402,149.91,149.81,63.75951995]
[1642322139338,22.8962,149.9,149.81,63.75951995]
[1642322139539,32.7362,149.9,149.81,63.75951995]
[1642322139740,0.26,149.89,149.81,63.75951995]
[1642322140740,0.26,149.89,149.81,64.00951995]
[1642322141941,0.26,149.89,149.76,9.84]
[1642322142139,0.26,149.89,149.77,30.4013]
[1642322142940,0.26,149.89,149.78,40.59457044]
[1642322143141,0.26,149.89,149.79,66.77]
[1642322143340,0.26,149.89,149.79,90.7515]
[1642322143541,38.9862,149.9,149.79,90.5015]
[1642322143841,38.9862,149.9,149.79,90.7515]
[1642322144246,38.7362,149.9,149.79,90.7515]
[1642322145344,0.26,149.89,149.79,90.7515]
[1642322145743,38.7362,149.9,149.79,90.7515]
[1642322146444,38.7362,149.9,149.79,96.7515]
[1642322146645,38.7362,149.9,149.79,90.7515]
[1642322146847,0.26,149.89,149.79,96.7515]
[1642322147347,0.26,149.89,149.79,96.4915]
[1642322147546,0.26,149.89,149.79,23.4715]
[1642322148146,0.26,149.89,149.79,23.7215]
[1642322148749,0.26,149.89,149.79,90.4915]
[1642322148947,0.26,149.89,149.8,0.26]
[1642322152750,0.26,149.89,149.79,29.7215]
[1642322153551,6.0,149.9,149.8,66.77]
[1642322153752,13.68116095,149.97,149.8,88.185]
[1642322153952,24.0661,149.96,149.82,66.77]
[1642322154152,24.0661,149.96,149.84,66.77]
[1642322154353,31.10251683,149.95,149.85,47.17623065]
[1642322154753,11.54077588,149.94,149.85,0.25]
[1642322154954,11.54077588,149.94,149.8,6.0]
[1642322155152,1.70077588,149.93,149.77,34.14457037]
[1642322155354,9.84,149.92,149.77,34.14457037]
[1642322155654,0.69477818,149.91,149.78,42.15909279]
[1642322155853,0.95477818,149.91,149.78,114.92909279]
[1642322156253,0.69477818,149.91,149.79,0.26]
[1642322156657,0.69477818,149.91,149.79,89.9696]
[1642322156857,0.69477818,149.91,149.79,95.9696]
[1642322157256,0.69477818,149.91,149.79,105.8096]
[1642322157756,0.69477818,149.91,149.79,106.0596]
[1642322158657,6.25,149.92,149.79,106.0596]
[1642322158858,0.25,149.92,149.79,106.0596]
[1642322159058,6.25,149.92,149.79,106.0596]
[1642322159458,24.77359775,149.91,149.79,106.0596]
[1642322159661,24.77359775,149.91,149.79,96.2196]
[1642322159958,6.26,149.91,149.79,96.2196]
[1642322160160,6.26,149.91,149.79,106.0596]
[1642322160358,0.26,149.91,149.79,106.0596]
[1642322160858,31.93178564,149.92,149.79,106.0596]
[1642322161258,37.93178564,149.92,149.79,106.0596]
[1642322161759,6.26,149.92,149.79,106.0596]
[1642322161964,0.26,149.92,149.79,96.2196]
[1642322162162,6.26,149.92,149.79,96.2196]
[1642322162564,6.26,149.92,149.81,66.77]
[1642322162763,28.67165219,149.92,149.83,66.77]
[1642322162961,34.67165219,149.92,149.83,67.02]
[1642322163260,6.26,149.92,149.84,0.26]
[1642322163462,6.51,149.92,149.84,0.26]
[1642322163661,0.51,149.92,149.84,0.26]
[1642322163863,6.26,149.92,149.84,0.26]
[1642322164481,0.26,149.92,149.84,0.26]
[1642322165465,0.26,149.92,149.84,24.4789]
[1642322165665,0.26,149.92,149.85,41.4176698]
[1642322169793,0.19113747,149.92,149.85,41.4176698]
[1642322176402,0.19113747,149.92,149.85,47.4176698]
[1642322177208,0.19113747,149.92,149.85,6.0]
[1642322177407,0.19113747,149.92,149.84,24.2189]
[1642322177607,0.19113747,149.92,149.8,24.1579]
[1642322177807,1.89191335,149.92,149.81,23.7044]
[1642322178211,3.38090171,149.91,149.82,45.4726478]
[1642322178411,0.26,149.9,149.82,45.7226478]
[1642322179008,24.293,149.9,149.82,45.7226478]
[1642322179439,30.293,149.9,149.82,45.7226478]
[1642322179908,30.543,149.9,149.82,45.7226478]
[1642322186315,30.543,149.9,149.82,0.25]
[1642322186516,30.543,149.9,149.81,23.9544]
[1642322187339,30.543,149.9,149.81,64.98909679]
[1642322188141,30.543,149.9,149.81,64.73909679]
[1642322189041,30.543,149.9,149.81,64.98909679]
[1642322189242,30.283,149.9,149.81,64.98909679]
[1642322189443,30.283,149.9,149.82,0.26]
[1642322189742,30.283,149.9,149.81,64.98909679]
[1642322189743,30.033,149.9,149.81,64.98909679]
[1642322189944,30.033,149.9,149.82,0.26]
[1642322191046,30.033,149.9,149.81,64.98909679]
[1642322191444,0.26,149.89,149.81,64.98909679]
[1642322191645,0.26,149.89,149.81,23.9544]
[1642322191949,0.26,149.89,149.81,0.25]
[1642322192246,11.80077588,149.89,149.76,3.78487037]
[1642322192447,16.1,149.89,149.78,6.0]
[1642322192646,28.4163933,149.88,149.77,59.31631897]
[1642322192847,0.26,149.87,149.77,65.31631897]
[1642322193247,23.2084,149.87,149.77,65.31631897]
[1642322193449,29.2084,149.87,149.77,65.31631897]
[1642322194051,29.2084,149.87,149.77,65.56631897]
[1642322194350,29.2084,149.87,149.77,65.31631897]
[1642322195849,31.04834561,149.87,149.77,65.56631897]
[1642322196951,29.2084,149.87,149.78,0.26]
[1642322197352,28.9484,149.87,149.78,0.26]
[1642322198753,0.26,149.86,149.78,0.26]
[1642322222810,2.09994561,149.86,149.78,0.26]
[1642322223010,8.09994561,149.86,149.78,0.26]
[1642322223210,3.38090171,149.85,149.78,0.26]
[1642322223510,0.26,149.84,149.78,0.26]
[1642322224111,33.63300171,149.85,149.78,0.26]
[1642322225415,0.26,149.84,149.78,0.26]
[1642322227915,33.88300171,149.85,149.78,0.26]
[1642322228315,0.26,149.84,149.78,0.26]
[1642322230319,0.26,149.84,149.77,6.0]
[1642322230719,0.26,149.84,149.76,7.90016213]
[1642322230920,0.26,149.84,149.76,2.15016213]
[1642322231121,0.26,149.84,149.76,8.15016213]
[1642322231322,0.26,149.84,149.77,48.91480819]
[1642322231720,0.26,149.84,149.77,55.16480819]
[1642322232922,33.88300171,149.85,149.78,0.26]
[1642322233322,33.88300171,149.85,149.77,55.16480819]
[1642322233522,33.88300171,149.85,149.77,6.0]
[1642322233922,33.88300171,149.85,149.76,31.18346213]
[1642322234324,0.26,149.84,149.76,31.18346213]
[1642322234623,0.26,149.84,149.76,29.2833]
[1642322235223,0.26,149.84,149.76,29.5333]
[1642322235422,0.26,149.84,149.76,29.2833]
[1642322236626,0.26,149.84,149.76,6.0]
[1642322236825,0.26,149.84,149.75,48.30880739]
[1642322239656,0.26,149.84,149.75,48.55880739]
[1642322239857,0.26,149.84,149.76,23.3939]
[1642322240256,0.26,149.84,149.76,29.3939]
[1642322241258,33.88300171,149.85,149.76,29.3939]
[1642322241458,43.72300171,149.85,149.76,29.3939]
[1642322242462,0.26,149.84,149.76,29.3939]
[1642322245569,0.26,149.84,149.76,28.8939]
[1642322247470,0.26,149.84,149.76,6.0]
[1642322247871,0.26,149.84,149.75,48.30880739]
[1642322248072,0.26,149.84,149.75,48.55880739]
[1642322248679,55.57664732,149.85,149.76,22.8312]
[1642322248873,55.57664732,149.85,149.76,28.8312]
[1642322249275,55.57664732,149.85,149.76,29.0812]
[1642322249474,55.57664732,149.85,149.77,0.26]
[1642322249674,45.56294732,149.85,149.77,0.26]
[1642322249873,0.26,149.84,149.77,0.26]
[1642322250774,43.47300171,149.85,149.76,29.0812]
[1642322250973,45.31294732,149.85,149.76,22.8312]
[1642322251173,1.70077588,149.83,149.76,22.8312]
[1642322251373,7.70077588,149.83,149.74,1.90016213]
[1642322251572,6.0,149.83,149.73,26.08916213]
[1642322251776,2.84294469,149.82,149.73,26.08916213]
[1642322251974,10.0163,149.81,149.73,1.90016213]
[1642322252173,23.8397,149.8,149.73,1.90016213]
[1642322252375,25.80047588,149.8,149.71,1.90016213]
[1642322252575,25.31654122,149.79,149.71,38.18980853]
[1642322252777,27.0173171,149.79,149.71,38.18980853]
[1642322252978,0.26,149.78,149.71,38.43980853]
[1642322253179,23.892,149.78,149.71,38.43980853]
[1642322253379,29.892,149.78,149.71,36.5396464]
[1642322254578,29.892,149.78,149.71,36.2896464]
[1642322256886,29.892,149.78,149.71,36.5396464]
[1642322257487,30.142,149.78,149.71,36.5396464]
[1642322258512,30.142,149.78,149.71,36.2896464]
[1642322258713,30.142,149.78,149.71,36.5396464]
[1642322263516,30.142,149.78,149.71,36.2896464]
[1642322263716,30.142,149.78,149.71,36.5396464]
[1642322266021,1.83994561,149.82,149.71,36.5396464]
[1642322266218,1.83994561,149.82,149.72,23.1413]
[1642322266418,1.83994561,149.83,149.72,23.3913]
[1642322266618,1.83994561,149.83,149.72,23.1313]
[1642322266819,24.1103944,149.82,149.72,23.1313]
[1642322267218,30.1103944,149.82,149.72,23.1313]
[1642322267419,0.26,149.81,149.72,23.1313]
[1642322267621,24.0844,149.81,149.72,23.1313]
[1642322267820,24.3344,149.81,149.72,23.1313]
[1642322268422,30.3344,149.81,149.72,22.8813]
[1642322269422,32.03517588,149.81,149.72,22.8813]
[1642322269623,41.87517588,149.81,149.69,24.4882]
[1642322269825,41.87517588,149.81,149.69,24.7382]
[1642322270028,41.87517588,149.81,149.69,6.25]
[1642322270422,41.87517588,149.81,149.69,0.25]
[1642322270626,41.87517588,149.81,149.69,48.08361083]
[1642322270627,43.71512149,149.81,149.69,48.08361083]
[1642322271523,53.73152149,149.81,149.69,48.08361083]
[1642322274825,1.83994561,149.8,149.69,48.08361083]
[1642322275027,9.84,149.79,149.69,48.08361083]
[1642322275224,7.68690061,149.77,149.7,23.8084]
[1642322275425,0.26,149.76,149.7,29.8084]
[1642322275628,0.26,149.76,149.7,30.0584]
[1642322275825,0.26,149.76,149.7,29.8084]
[1642322277327,0.26,149.76,149.7,30.0584]
[1642322278929,0.26,149.76,149.7,29.8084]
[1642322279130,0.26,149.76,149.7,30.0584]
[1642322279930,0.26,149.76,149.7,6.0]
[1642322280130,0.26,149.76,149.69,47.83361083]
[1642322280933,0.26,149.76,149.69,48.08361083]
[1642322281531,0.25,149.77,149.69,48.08361083]
[1642322281732,6.0,149.77,149.7,25.1908]
[1642322281934,1.83994561,149.8,149.7,31.4408]
[1642322282837,0.26,149.79,149.7,31.4408]
[1642322283136,0.26,149.79,149.7,31.1808]
[1642322287641,25.0761,149.79,149.7,31.1808]
[1642322288342,31.0761,149.79,149.7,31.1808]
[1642322288542,0.26,149.79,149.7,31.1808]
[1642322288739,24.478,149.79,149.7,31.1808]
[1642322289339,24.478,149.79,149.71,0.26]
[1642322289539,24.218,149.79,149.71,0.26]
[1642322289740,24.468,149.79,149.71,0.26]
[1642322290942,0.26,149.78,149.7,31.1808]
[1642322291344,25.1189,149.79,149.71,0.26]
[1642322291748,24.8589,149.79,149.71,0.26]
[1642322292572,36.5586925,149.8,149.71,0.26]
[1642322292974,0.26,149.79,149.7,33.08096213]
[1642322293377,0.26,149.79,149.7,31.1808]
[1642322295876,0.26,149.79,149.7,6.0]
[1642322296276,0.26,149.79,149.69,49.73377296]
[1642322296478,0.26,149.79,149.7,6.0]
[1642322296677,0.26,149.79,149.69,49.73377296]
[1642322297081,0.26,149.79,149.69,47.83361083]
[1642322297380,10.2776,149.79,149.69,47.83361083]
[1642322297577,24.9511,149.78,149.69,47.83361083]
[1642322297978,0.26,149.77,149.69,47.83361083]
[1642322299378,0.26,149.77,149.7,23.8222]
[1642322299778,0.26,149.77,149.7,30.0722]
[1642322299979,0.26,149.77,149.7,29.8222]
[1642322302884,0.26,149.77,149.7,30.0722]
[1642322304482,0.26,149.77,149.7,29.8222]
[1642322307089,0.26,149.77,149.7,23.8222]
[1642322308391,0.26,149.77,149.7,30.0722]
[1642322308789,0.26,149.77,149.71,0.26]
[1642322310493,0.26,149.77,149.7,23.8222]
[1642322310715,0.26,149.77,149.69,41.83361083]
[1642322310916,0.26,149.77,149.69,42.08361083]
[1642322311117,0.26,149.77,149.69,41.83361083]
[1642322312819,0.26,149.77,149.69,42.08361083]
[1642322313220,0.26,149.77,149.7,23.2639]
[1642322314322,0.26,149.77,149.7,29.2639]
[1642322315024,0.26,149.77,149.7,29.5139]
[1642322315223,0.26,149.77,149.7,29.2639]
[1642322315923,0.26,149.77,149.7,29.5139]
[1642322316524,0.26,149.77,149.7,29.2639]
[1642322326843,0.26,149.77,149.7,23.2639]
[1642322327042,2.09994561,149.77,149.7,23.2639]
[1642322327643,8.09994561,149.77,149.7,23.2639]
[1642322327846,0.26,149.77,149.7,23.2639]
[1642322328043,0.26,149.77,149.7,23.5139]
[1642322328444,0.26,149.77,149.7,23.2639]
[1642322328643,32.79104561,149.78,149.7,23.2639]
[1642322328843,32.79104561,149.78,149.7,23.5139]
[1642322329969,0.26,149.77,149.7,23.5139]
[1642322334274,0.26,149.77,149.7,23.2639]
[1642322335075,2.09994561,149.77,149.7,23.2639]
[1642322336277,0.26,149.77,149.7,23.2639]
[1642322336676,0.26,149.77,149.7,29.2639]
[1642322337075,0.26,149.77,149.7,29.5139]
[1642322339876,33.04104561,149.78,149.7,29.5139]
[1642322340278,33.04104561,149.78,149.7,29.2639]
[1642322341278,0.26,149.77,149.7,6.0]
[1642322341681,0.26,149.77,149.69,47.83361083]
[1642322342880,0.26,149.77,149.7,23.5957]
[1642322343282,0.26,149.77,149.7,29.5957]
[1642322343481,33.04104561,149.78,149.7,29.5957]
[1642322343683,1.83994561,149.78,149.71,0.26]
[1642322343881,1.83994561,149.78,149.71,10.1]
[1642322344281,1.83994561,149.78,149.72,66.77]
[1642322344685,1.83994561,149.78,149.73,0.26]
[1642322344887,1.83994561,149.8,149.73,0.26]
[1642322345086,1.83994561,149.8,149.74,40.7263666]
[1642322345885,0.26,149.79,149.74,40.7263666]
[1642322346084,1.83994561,149.81,149.74,40.9763666]
[1642322346288,1.83994561,149.81,149.75,0.26]
[1642322346488,1.83994561,149.81,149.75,6.239]
[1642322346685,1.83994561,149.81,149.75,5.979]
[1642322346885,1.83994561,149.82,149.75,5.979]
[1642322347086,33.59216958,149.82,149.75,5.979]
[1642322347286,35.29294546,149.82,149.75,5.979]
[1642322347487,0.26,149.81,149.74,40.7263666]
[1642322347686,24.3763,149.81,149.74,40.7263666]
[1642322347886,26.21624561,149.81,149.74,40.7263666]
[1642322348288,36.23244561,149.81,149.74,40.7263666]
[1642322348488,36.23244561,149.81,149.7,11.74016213]
[1642322348689,36.23244561,149.81,149.71,22.5639]
[1642322348890,1.83994561,149.8,149.71,28.5639]
[1642322349288,0.26,149.79,149.71,28.5639]
[1642322349490,2.09994561,149.79,149.72,47.211001]
[1642322349892,2.09994561,149.79,149.72,53.211001]
[1642322350390,0.26,149.79,149.72,53.211001]
[1642322350594,0.26,149.79,149.73,24.7677]
[1642322355698,0.26,149.79,149.72,53.211001]
[1642322356499,0.26,149.79,149.73,23.7653]
[1642322356696,2.09994561,149.79,149.73,23.7653]
[1642322356898,2.09994561,149.79,149.73,29.7653]
[1642322360603,2.34994561,149.79,149.73,29.7653]
[1642322366911,2.34994561,149.79,149.73,6.0]
[1642322367112,8.34994561,149.79,149.69,23.0524]
[1642322367311,22.8973,149.78,149.69,23.3024]
[1642322367714,0.26,149.77,149.69,23.3024]
[1642322368115,0.26,149.77,149.7,35.38182479]
[1642322368314,0.26,149.77,149.7,41.38182479]
[1642322370315,0.26,149.77,149.71,0.26]
[1642322383164,0.26,149.77,149.71,67.03]
[1642322383365,0.26,149.77,149.71,6.51]
[1642322383565,0.26,149.77,149.71,31.0307]
[1642322384262,24.98724561,149.78,149.71,31.0307]
[1642322384763,24.98724561,149.78,149.71,97.8007]
[1642322386067,1.83994561,149.78,149.71,97.8007]
[1642322386365,4.561e-05,149.78,149.73,63.0]
[1642322386566,4.561e-05,149.78,149.74,9.84]
[1642322386866,4.561e-05,149.78,149.75,66.77]
[1642322387069,4.561e-05,149.78,149.75,76.61]
[1642322387267,4.561e-05,149.78,149.76,113.70528603]
[1642322387465,3.67546095,149.81,149.76,113.95528603]
[1642322387665,28.63449772,149.86,149.76,113.95528603]
[1642322387868,34.88449772,149.86,149.77,33.4387]
[1642322388267,0.26,149.85,149.77,33.6887]
[1642322389771,34.63449772,149.86,149.77,33.6887]
[1642322389970,34.63449772,149.86,149.78,0.26]